Cogmind - Beta 11.1 @@@ ROGUE MODE // 2022.05.07 @ 22:18:18 Player: Jim Result: Destroyed by G-47 Trooper with Particle Gun Performance ------------- Evolutions (3) 1500 Regions Visited (5) 1000 Robots Destroyed (45) 225 Value Destroyed (1462) 1462 Prototype IDs (4) 80 Alien Tech Used (0) 0 Bonus (0) 0 TOTAL SCORE: 4267 Bonus ------- None Cogmind --------- Core Integrity 0/700 Matter 300/300 Energy 99/100 System Corruption 0% Temperature Cool (18) Movement Rolling (120) Ox2 Location -7/Lower Caves Parts ------- > --- POWER (1) -------- (None) > --- PROPULSION (3) --- Armored Wheel > --- UTILITY (6) ------ Large Storage Unit Targeting Computer > --- WEAPON (3) ------- Assault Cannon > --- INVENTORY (15) --- Ion Engine Aluminum Leg Carbon-fiber Leg Improved Cooling System Improved Cooling System Peak State ------------ > --- POWER ------------ Improved Ion Engine > --- PROPULSION ------- Aluminum Leg Armored Wheel Armored Wheel > --- UTILITY ---------- Small Storage Unit Large Storage Unit Seismic Detector Improved Targeting Computer Particle Charger Layered Light Armor Plating > --- WEAPON ----------- Assault Cannon Flak Cannon Gauss Cannon > --- INVENTORY -------- Ion Engine Aluminum Leg Titanium Leg Improved Titanium Leg Wheel Armored Wheel Improved Cooling System Improved Cooling System Heavy Particle Cannon Autogun Assault Cannon Heavy Missile Launcher [Rating: 32] Favorites ----------- Power Ion Engine Engine Ion Engine Propulsion Armored Wheel Treads Light Treads Leg Aluminum Leg Wheel Armored Wheel Utility Small Storage Unit Device Seismic Detector Storage Small Storage Unit Processor Improved Targeting Computer Hackware System Shield Protection Hardened Light Armor Plating Weapon Light Assault Rifle Energy Gun Heavy EM Pulse Gun Energy Cannon Heavy Particle Cannon Ballistic Gun Light Assault Rifle Ballistic Cannon Assault Cannon Launcher Heavy Missile Launcher Build | -11 -10 -9 -8 -7 -7 ------- Run | Scr Mat Mat Mat Fac Low Slots Evolved 6 | . . 2 2 2 . Power . | . . . . . . Propulsion 1 | . . . 1 . . Utility 4 | . . 2 . 2 . Weapon 1 | . . . 1 . . Parts Attached 58 | 2 4 13 18 4 17 Power 6 | . . 2 2 . 2 Engine 6 | . . 2 2 . 2 Core . | . . . . . . Reactor . | . . . . . . Propulsion 15 | 2 1 2 5 . 5 Treads 2 | 1 . 1 . . . Leg 3 | . . . 1 . 2 Wheel 10 | 1 1 1 4 . 3 Hover . | . . . . . . Flight . | . . . . . . Utility 13 | . 1 5 2 3 2 Device 2 | . . . . 2 . Storage 3 | . . 2 1 . . Processor 3 | . . 2 . . 1 Hackware 1 | . . . 1 . . Protection 4 | . 1 1 . 1 1 Artifact . | . . . . . . Weapon 24 | . 2 4 9 1 8 Energy Gun 4 | . . 1 3 . . Energy Cannon 1 | . . . . . 1 Ballistic Gun 6 | . 1 1 2 . 2 Ballistic Cannon 7 | . . . 3 1 3 Launcher 6 | . 1 2 1 . 2 Special Weapon . | . . . . . . Impact Weapon . | . . . . . . Slashing Weapon . | . . . . . . Piercing Weapon . | . . . . . . Special Melee Weapon . | . . . . . . Unidentified Prototypes 4 | . . 1 3 . . Parts Lost 45 | . . 8 14 . 23 Power 6 | . . 2 2 . 2 Propulsion 13 | . . 2 4 . 7 Utility 9 | . . 2 2 . 5 Weapon 17 | . . 2 6 . 9 Highest Loss Streak 12 | . . 7 7 . 12 To Critical Strikes . | . . . . . . Average Slot Usage (%) 81 | . 99 89 65 93 65 Engine 7 | . 14 9 5 7 3 Treads 4 | . 14 10 4 . . Leg 4 | . . . . 7 8 Wheel 11 | . 14 10 14 15 7 Device 4 | . . . . 12 5 Storage 13 | . 14 14 16 15 11 Processor 6 | . . 10 9 7 6 Protection 5 | . 13 14 . 3 3 Ballistic Gun 7 | . 27 17 4 . . Ballistic Cannon 9 | . . . 4 22 10 Naked Turns . | . . . . . . Heaviest Build 58 | 12 17 42 43 58 58 Greatest Support 37 | 16 16 16 36 24 37 Greatest Overweight (x) 11 | . 5 4 6 2 11 Average Overweight (x) 1 | . 1 1 1 1 2 Largest Inventory Capacity 15 | 8 8 15 15 15 15 Average Capacity 12 | 8 8 8 15 15 15 Most Carried 14 | 6 8 8 11 13 14 Average Carried 8 | 6 7 6 7 8 9 Final Capacity 15 | 8 8 15 15 15 15 Final Carried 13 | 6 8 7 3 13 5 Class Distribution -------------------- 67% | Mutant 32% | Gunner Dominant Class ---------------- Mutant | -10/Materials Mutant | -9/Materials Mutant | -8/Materials Gunner | -7/Factory Mutant | -7/Lower Caves Resources | -11 -10 -9 -8 -7 -7 ----------- Run | Scr Mat Mat Mat Fac Low Matter Collected 1375 | 179 175 215 221 47 538 Remotely . | . . . . . . Salvage Created 1444 | . 358 459 411 46 170 Parts 76 | . 28 25 12 3 8 Haulers Intercepted 1 | . . . 1 . . Recyclers Shooed 2 | . 1 1 . . . Parts Field Recycled . | . . . . . . Retrieved Matter . | . . . . . . Parts Self-Destructed 11 | . . . . . 11 Prevented 1 | . . . . . 1 Kills | -11 -10 -9 -8 -7 -7 ------- Run | Scr Mat Mat Mat Fac Low Combat Hostiles Destroyed 39 | . 11 10 10 1 7 Guns 20 | . 9 7 4 . . Cannons 9 | . . . 2 1 6 AOE 9 | . 2 3 3 . 1 Classes Destroyed 8 | . 5 1 2 . . Worker 1 | . 1 . . . . Hauler 1 | . . . 1 . . Recycler 3 | . 1 2 . . . Operator 1 | . 1 . . . . Swarmer 8 | . 6 . . . 2 Grunt 25 | . 5 9 7 . 4 Brawler 1 | . . 1 . . . Sentry 5 | . . . 3 1 1 Best Kill Streak 10 | . 10 7 4 1 3 Combat Bots Only 8 | . 8 5 4 1 3 Max Kills in Single Turn 2 | . 2 2 2 1 1 Gunslinging . | . . . . . . Exploded 2 | . 1 2 2 . 1 Melee . | . . . . . . Uniques/NPCs Destroyed . | . . . . . . Combat | -11 -10 -9 -8 -7 -7 -------- Run | Scr Mat Mat Mat Fac Low Damage Taken 6464 | . 360 833 1959 98 3214 Core 1474 | . 122 173 476 23 680 Absorbed by Shields . | . . . . . . Core Remaining (%) 55 | 100 51 56 13 . . Volleys Fired 153 | . 35 34 46 2 36 Largest 3 | . 2 2 3 3 3 Hottest 140 | . 40 65 140 136 131 Shots Fired 256 | . 67 60 61 6 62 Gun 161 | . 64 52 38 . 7 Cannon 71 | . . . 18 6 47 Launcher 24 | . 3 8 5 . 8 Special . | . . . . . . Kinetic 203 | . 64 51 40 6 42 Thermal 17 | . . . 5 . 12 Explosive 24 | . 3 8 5 . 8 Electromagnetic 12 | . . 1 11 . . Robot Hit Streak 14 | . 6 7 10 10 14 Robot Miss Streak 6 | . 4 6 2 . 3 Penetration Max . | . . . . . . Secondary Targets 4 | . 4 . . . . Max Gunslinging Chain 1 | . 1 . . . . Shots Hit Robots 168 | . 38 35 43 4 48 Core Hits 108 | . 27 26 26 4 25 Critical Kills . | . . . . . . Critical Parts Destroyed . | . . . . . . Critical Strikes 3 | . . . 1 . 2 Burn 1 | . . . 1 . . Blast 2 | . . . . . 2 Melee Attacks . | . . . . . . Impact . | . . . . . . Slashing . | . . . . . . Piercing . | . . . . . . Sneak Attacks . | . . . . . . Combat Hostiles . | . . . . . . Follow-up Attacks . | . . . . . . Damage Inflicted 4308 | . 474 816 1337 119 1562 Guns 1063 | . 298 262 432 . 71 Cannons 1310 | . . . 283 119 908 Explosions 1930 | . 176 554 617 . 583 Melee . | . . . . . . Ramming 5 | . . . 5 . . Kinetic 1887 | . 298 247 516 119 707 Thermal 426 | . . . 154 . 272 Explosive 1826 | . 176 554 513 . 583 Electromagnetic 164 | . . 15 149 . . Impact . | . . . . . . Slashing . | . . . . . . Piercing . | . . . . . . Highest Corruption 6 | . . 6 2 . . Average Corruption 2 | . . 5 2 . . Corruption Purged . | . . . . . . Corruption Blocked . | . . . . . . Effects 5 | . . 2 3 . . Message Errors 3 | . . 1 2 . . Energy Discharges 1 | . . 1 . . . Data Loss (minor) 1 | . . . 1 . . Overload Shots . | . . . . . . Overflow Damage 40 | . . 16 14 . 10 Projectiles 24 | . . . 14 . 10 Explosions 16 | . . 16 . . . Melee . | . . . . . . Knockbacks 13 | . . . 8 . 5 Impact . | . . . . . . Kinetic 11 | . . . 6 . 5 Secondary 2 | . . . 2 . . Self-Inflicted Damage 482 | . 40 326 59 . 57 Shots 14 | . 1 8 3 . 2 Rammed 1 | . . . 1 . . Targets Rammed 1 | . . . 1 . . Kicked . | . . . . . . Crushed . | . . . . . . Highest Temperature 431 | . 49 139 241 162 431 Average Temperature 76 | . 18 40 68 87 163 Received Heat Transfer 2055 | . 84 222 1035 30 684 Effects 4 | . . . . . 4 Shutdowns 1 | . . . . . 1 Interference 3 | . . . . . 3 Siege Activations . | . . . . . . Robots Corrupted . | . . . . . . Combat Hostiles . | . . . . . . Parts Fried . | . . . . . . Impact Corruptions 1 | . . . 1 . . Robots Melted . | . . . . . . Combat Hostiles . | . . . . . . Parts Melted . | . . . . . . Heat Transferred 655 | . . . 285 . 370 Parts Sabotaged . | . . . . . . Parts Stolen . | . . . . . . Parts Stripped . | . . . . . . Power Chain Reactions 2 | . . . 2 . . Missiles Intercepted . | . . . . . . Alert | -11 -10 -9 -8 -7 -7 ------- Run | Scr Mat Mat Mat Fac Low Peak Influence 383 | . 383 309 359 146 . Initial 130 | . . 83 130 101 . Average 143 | . 164 177 216 63 . Maximum Alert Level 1 | . 1 1 1 . . Low Security (%) 74 | 100 73 62 46 100 . Level 1 25 | . 26 37 53 . . Level 2 . | . . . . . . Level 3 . | . . . . . . Level 4 . | . . . . . . Level 5 . | . . . . . . High Security . | . . . . . . Max Security . | . . . . . . Squads Dispatched 6 | . 2 2 . 2 . Investigation 2 | . . 1 . 1 . Extermination 1 | . . . . 1 . Reinforcement 3 | . 2 1 . . . Assault . | . . . . . . Garrison . | . . . . . . Intercept . | . . . . . . Searches Triggered . | . . . . . . Construction Impeded . | . . . . . . Haulers Reinforced . | . . . . . . Active Scanning Responses . | . . . . . . Cargo Convoy Interrupts . | . . . . . . Stealth | -11 -10 -9 -8 -7 -7 --------- Run | Scr Mat Mat Mat Fac Low Distress Signals 6 | . 1 3 2 . . Communications Jammed . | . . . . . . Distress Signals . | . . . . . . Times Spotted 66 | . 17 12 21 1 15 Peak Tracking Total 10 | . 7 7 10 1 7 Tactical Retreats 4 | . . . 2 . 2 Traps | -11 -10 -9 -8 -7 -7 ------- Run | Scr Mat Mat Mat Fac Low Traps Triggered . | . . . . . . Indirectly . | . . . . . . Trap Hack Attempts . | . . . . . . Triggered . | . . . . . . Disarmed . | . . . . . . Reprogrammed . | . . . . . . Reused . | . . . . . . Traps Extracted . | . . . . . . Installed . | . . . . . . Triggered . | . . . . . . Machines | -11 -10 -9 -8 -7 -7 ---------- Run | Scr Mat Mat Mat Fac Low Machines Disabled 2 | . . 1 . . 1 Max in Single Turn 1 | . . 1 . . 1 Garrison Access 1 | . . . . 1 . Machines Sabotaged . | . . . . . . Garrisons Compromised . | . . . . . . Overloaded Fab Kills . | . . . . . . Hacking | -11 -10 -9 -8 -7 -7 --------- Run | Scr Mat Mat Mat Fac Low Machines Accessed 6 | . 1 1 1 3 . Terminals 5 | . 1 1 1 2 . Fabricators . | . . . . . . Repair Stations . | . . . . . . Recycling Units . | . . . . . . Scanalyzers . | . . . . . . Garrison Access 1 | . . . . 1 . Total Hacks 20 | . 5 4 3 8 . Successful 12 | . 2 2 3 5 . Failed 8 | . 3 2 . 3 . Catastrophic . | . . . . . . Database Lockouts . | . . . . . . Manual . | . . . . . . Terminals 19 | . 5 4 3 7 . Fabricators . | . . . . . . Repair Stations . | . . . . . . Recycling Units . | . . . . . . Scanalyzers . | . . . . . . Garrison Access 1 | . . . . 1 . Terminal Hacks 11 | . 2 2 3 4 . Record 2 | . . 2 . . . Emergency Access Points 1 | . . . 1 . . Locate Traps 3 | . 1 . . 2 . Dispatch Records 1 | . . . 1 . . Maintenance Status 1 | . . . . 1 . Investigation Status 1 | . . . . 1 . Recall Investigation 1 | . 1 . . . . Zone Layout 1 | . . . 1 . . Fabricator Hacks . | . . . . . . Repair Station Hacks . | . . . . . . Recycling Unit Hacks . | . . . . . . Scanalyzer . | . . . . . . Garrison Access Hacks 1 | . . . . 1 . Seal Access 1 | . . . . 1 . Unauthorized Hacks . | . . . . . . Terminals . | . . . . . . Fabricators . | . . . . . . Repair Stations . | . . . . . . Recycling Units . | . . . . . . Scanalyzers . | . . . . . . Garrison Access . | . . . . . . Data Cores Recovered . | . . . . . . Used . | . . . . . . Hacking Detections 4 | . 1 1 1 1 . Full Trace Events 2 | . . 1 . 1 . Feedback Events . | . . . . . . Feedback Blocked . | . . . . . . Robot Schematics Acquired . | . . . . . . Robots Built . | . . . . . . Authchips . | . . . . . . Time . | . . . . . . Total Robot Build Rating . | . . . . . . Part Schematics Acquired . | . . . . . . Parts Built . | . . . . . . Authchips . | . . . . . . Time . | . . . . . . Total Part Build Rating . | . . . . . . Parts Repaired . | . . . . . . Time . | . . . . . . Parts Recycled . | . . . . . . Recycled Matter . | . . . . . . Retrieved Matter . | . . . . . . Retrieved Components . | . . . . . . Parts Scanalyzed . | . . . . . . Part Schematics Acquired . | . . . . . . Parts Damaged . | . . . . . . Bothacking | -11 -10 -9 -8 -7 -7 ------------ Run | Scr Mat Mat Mat Fac Low Used RIF Installer . | . . . . . . Robots Hacked . | . . . . . . Non-combat . | . . . . . . Combat . | . . . . . . Robot Hacks Applied . | . . . . . . Relay Couplers Released . | . . . . . . Fabnet Peak Effective % . | . . . . . . Robots Rewired . | . . . . . . Allies Hacked . | . . . . . . Hacks Repelled . | . . . . . . Allies | -11 -10 -9 -8 -7 -7 -------- Run | Scr Mat Mat Mat Fac Low Total Allies . | . . . . . . Largest Group . | . . . . . . Highest-Rated Group . | . . . . . . Highest-Rated Ally . | . . . . . . Total Orders . | . . . . . . Ally Attacks . | . . . . . . Total Damage . | . . . . . . Kills . | . . . . . . Allies Corrupted . | . . . . . . Allies Melted . | . . . . . . Intel | -11 -10 -9 -8 -7 -7 ------- Run | Scr Mat Mat Mat Fac Low Robot Analysis Total . | . . . . . . Derelict Logs Recovered 1 | . . . . . 1 Drone Launches . | . . . . . . Drone Recoveries . | . . . . . . Exploration | -11 -10 -9 -8 -7 -7 ------------- Run | Scr Mat Mat Mat Fac Low Turns Passed 2972 | 3 555 332 449 690 943 Spaces Moved 1974 | 1 311 191 296 550 625 Core 65 | . 56 4 1 . 4 Treads . | . . . . . . Legs 45 | . . . . . 45 Wheels 1864 | 1 255 187 295 550 576 Hover . | . . . . . . Flight . | . . . . . . Fastest Speed 90 | 100 100 95 90 105 115 Average Speed 125 | 100 147 113 107 119 131 Slowest Speed 600 | 100 300 150 350 120 600 Overloaded Moves . | . . . . . . Propulsion Burnouts . | . . . . . . Robots Hopped . | . . . . . . Cave-ins Triggered . | . . . . . . Exploration Rate (%) 31 | 2 64 18 29 18 56 Regions Visited 5 Branch Regions 1 Pre-discovered Areas . | . . . . . . Known Exits Taken . | . . . . . . Unknown Exits Taken 5 | 1 1 1 1 1 . Scrap Searched 4 | . . . . . 4 Spaces Dug . | . . . . . . Terrain Destroyed 140 | . 19 10 41 . 70 Melee . | . . . . . . Projectile 8 | . . . 2 . 6 AOE 132 | . 19 10 39 . 64 Terrain Rammed . | . . . . . . Walls Destroyed . | . . . . . . Machines Disabled . | . . . . . . Actions | -11 -10 -9 -8 -7 -7 --------- Run | Scr Mat Mat Mat Fac Low Total 2260 | 2 357 257 376 578 690 Wait 21 | . . 6 1 9 5 Move 1969 | . 310 190 295 549 625 Hop . | . . . . . . Pick Up 49 | . 5 11 12 14 7 Fast Attach . | . . . . . . Attach 47 | . 1 11 16 4 15 Detach 2 | . . 1 1 . . Swap 11 | 2 3 2 2 . 2 Drop 7 | . 3 2 2 . . Fire 153 | . 35 34 46 2 36 Melee . | . . . . . . Ram 1 | . . . 1 . . Kick . | . . . . . . Crush . | . . . . . . Escape Stasis . | . . . . . . Rewire . | . . . . . . Trap . | . . . . . . Miscellaneous . | . . . . . . Route ------- -11/Scrapyard -10/Materials (discovered 3 exits: *Mat x2 / [*Min]) -9/Materials -8/Materials (discovered 2 exits: *Fac / [*Sto]) -7/Factory -7/Lower Caves History --------- Turn | Location | Event 4 | -11/Scrapyard | Discovered new exit (range 0) 4 | -11/Scrapyard | Entered Materials 108 | -10/Materials | Discovered new exit (range 16) 283 | -10/Materials | Destroyed 8 combat bots 303 | -10/Materials | Discovered new exit (range 16) 304 | -10/Materials | Build established: Mutant 353 | -10/Materials | Discovered new exit (range 8) 559 | -10/Materials | Entered another Materials area 559 | -9/Materials | Evolved 2 slots: Utility x2 817 | -9/Materials | Lost 7 parts (1p2n2u2w) 873 | -9/Materials | Discovered new exit (range 5) 891 | -9/Materials | Entered another Materials area 891 | -8/Materials | Evolved 2 slots: Propulsion x1, Weapon x1 964 | -8/Materials | Discovered new exit (range 10) 1037 | -8/Materials | Lost 3 parts (1n1u1w) 1162 | -8/Materials | Lost 7 parts (2p1n4w) 1188 | -8/Materials | Core integrity fell below 50% 1224 | -8/Materials | Lost 3 parts (1n1u1w) 1256 | -8/Materials | Core integrity fell below 20% 1324 | -8/Materials | Discovered new exit (range 14) 1340 | -8/Materials | Entered Factory 1340 | -7/Factory | Evolved 2 slots: Utility x2 1653 | -7/Factory | Build established: Gunner 1958 | -7/Factory | Discovered new exit (range 15) 2030 | -7/Factory | Entered Lower Caves 2156 | -7/Lower Caves | Spotted B-75 Beast 2295 | -7/Lower Caves | Lost 5 parts (1p1n1u2w) 2356 | -7/Lower Caves | Learned location of 1 exit from Factory 2516 | -7/Lower Caves | Attracted the attention of an 0b10 base 2557 | -7/Lower Caves | Core integrity fell below 50% 2586 | -7/Lower Caves | Build established: Mutant 2591 | -7/Lower Caves | Core integrity fell below 20% 2615 | -7/Lower Caves | Lost 12 parts (2n4u6w) 2973 | -7/Lower Caves | Destroyed by G-47 Trooper with Particle Gun Last Messages --------------- 02836_ Slug penetrates Wall. 02849_ Penetrated by Slug. 02867_ Acquired 11 matter. 02872_ Slug penetrates Wall. 02926_ Acquired 49 matter. 02928_ Acquired Lgt. Angular Momentum Engine. 02931_ G-47 Trooper Lgt. Nuclear Core blasted off. 02931_ G-47 Trooper knocked back. 02931_ Slug penetrates Wall. 02933_ Adv. Assault Cannon destroyed. 02934_ Acquired 64 matter. 02935_ G-47 Trooper destroyed. 02938_ Acquired 53 matter. 02940_ Acquired Corrupted Carbon-fiber Leg. 02941_ Penetrated by Slug. 02941_ Lgt. Angular Momentum Engine destroyed. 02959_ Imp. Titanium Leg destroyed. 02962_ G-47 Trooper knocked back. 02964_ G-47 Trooper destroyed. 02969_ Acquired 15 matter. Map ----- +----------------------------------------------------+ | | | ?????????????????????????????????????????????????? | | ?????????????????????????????????????????????????? | | ?????????????????????????????????????????????????? | | ?????????????????????????????????????????????????? | | ?????????????????????????????????????????????????? | | ?????????????????????????????????????????????????? | | ?????????????????????????????????????????????????? | | ?????????????????????????????????????????????????? | | ?????????????????????????????????????????????????? | | ?????????????????????????????????????????????????? | | ?????????????????????????????????????????????????? | | ?????????????????????????????????????????????????? | | ????????????????????????????????????????????##??#? | | ???????????????????????????????????????????? ? #? | | ???????????????????????????????????????????? ? #? | | ??????????????????????????????####????????? ? #? | | ????????????????????????????### ##???????? ? #? | | ???????????????????????????## #???????? #? | | ??????????????????????????## #???????? ## | | ?????????????????????????## ##??????? # | | ????????????????????####?#% #??????? # | | ???????????????????## ?## % ## #?###??? | | ???????????????????# ?#%#### ### ####% | | ???????????????????# ## #?# %% *#?????? | | ???????????????????# @ #?# %%#?????? | | ??????????????# #?#### %##= #?????? | | ??????????????# #####????## ### #?????? | | ??????????????# g#??????????###### ###???? | | ??????????????# g ???????????????## #???? | | ????????????? g ????????#???????# #???? | | ???????????? ####????????# ??????# ##??? | | ???????????? ?????????????# ?????# ###? | | ????????????? ????????????????# ????### ## | | ??????????????????????????????# ##???# # | | ????????????????????????????### #### # | | ??????????????????????????? | | ??????????????????????????? ## | | ????????????????????????????# ##? | | ????????????????????????????## #### ##?? | | ?????????????????????????????# ????## ##??? | | ?????????????????????????????##?????## ##???? | | ????????????????????????????????????# *#### % | | ????????????????????????????????????# %%% % | | ????????????????????????????????????## ### | | ?????????????????????????????????????# #??? | | ????????????????????????????????????## ##??? ? | | ??????????????????????????? ### #????# | | ??????????????????????????? #????? | | ???????????????????????????# #????? | +----------------------------------------------------+ Best States ------------- Heat Dissipation 34 Energy Generation 18 Energy Capacity 280 Matter Stores 300 Matter Capacity 300 Sight Range 16 Terrain Scan Density 10 Armor Coverage 375 Evasion (%) 50 Targeting Accuracy 6 Particle Charging 15 Defensive Hacking 10 Item Schematics ----------------- None Robot Schematics ------------------ None Fabricated ------------ Nothing Alien Tech Used ----------------- None Achievements -------------- None Challenges ------------ None Game ------ Seed MicrowarpTiamatShockpuncher Manual? 0 Play Time 00:45:29 Cumulative 29.6 hours Start 2022.05.07 @ 21:35:12 End 2022.05.07 @ 22:18:18 Sessions 1 Manual Loads 0 Difficulty Rogue Special Mode None Game No. 40 Rogue 27 Adventurer 0 Explorer 13 Win Type - Total 0 Types 0/0/0/0/0/0/0/0/0 Lore% 23 Gallery% 23 Achievement% 20 Wizard Run 0 Options --------- ASCII 1 Keyboard 0 Movement Mouse Keybinds 0 Fullscreen 1 Font 18/SmallcapsGlow Map View 76x50 Tactical HUD 1 Map Filters NONE Filters NONE Steam 1 RUN: 81b338d1-3d1d-4074-926b-c608b1b02162